bitfinex/quotes_SOLUSD_20240816
["timestamp","ask_amount","ask_price","bid_price","bid_amount"]
[1723776761077,31.0017,142.91,142.85,20.12549]
[1723776761277,31.0017,142.91,142.87,20.0]
[1723776761511,12.2096,142.92,142.87,20.0]
[1723776761715,43.7619,143.01,142.89,20.0]
[1723776761716,33.003,142.95,142.89,20.0]
[1723776762016,33.003,142.95,142.9,0.12549]
[1723776762217,33.003,142.95,142.89,20.0]
[1723776762422,33.003,142.95,142.91,20.0]
[1723776762917,33.003,142.95,142.88,45.25098]
[1723776762918,33.003,142.95,142.9,20.0]
[1723776763122,33.003,142.95,142.91,0.25098]
[1723776763324,12.7361,142.96,142.92,20.0]
[1723776764209,12.7361,142.96,142.93,0.25098]
[1723776764411,12.7361,142.96,142.93,0.12549]
[1723776764618,12.7361,142.96,142.93,20.0]
[1723776764922,12.7361,142.96,142.94,0.12549]
[1723776765109,12.7361,142.96,142.91,20.12549]
[1723776765296,12.7361,142.96,142.92,0.12549]
[1723776766528,12.7361,142.96,142.92,20.0]
[1723776766829,12.7361,142.96,142.91,20.25098]
[1723776767597,0.12549,142.95,142.88,65.0]
[1723776767802,0.25098,142.95,142.9,20.0]
[1723776768109,0.12549,142.95,142.92,20.0]
[1723776768311,12.7361,142.96,142.93,0.51273985]
[1723776768624,46.1288,142.99,142.95,20.0]
[1723776768827,46.1288,142.99,142.93,46.40549]
[1723776768828,46.1288,142.99,142.96,0.12549]
[1723776769044,46.1288,142.99,142.93,20.12549]
[1723776769045,46.1288,142.99,142.93,0.12549]
[1723776769745,0.25098,142.98,142.93,0.25098]
[1723776770723,0.25098,142.98,142.93,0.12549]
[1723776770947,0.25098,142.98,142.93,20.0]
[1723776771649,0.25098,142.98,142.94,0.12549]
[1723776772527,0.25098,142.98,142.94,20.12549]
[1723776773058,0.25098,142.98,142.94,0.12549]
[1723776773218,0.25098,142.98,142.92,0.12549]
[1723776773847,0.25098,142.98,142.92,20.12549]
[1723776774025,0.25098,142.98,142.93,0.12549]
[1723776775435,0.25098,142.98,142.93,20.12549]
[1723776776725,0.25098,142.98,142.93,0.12549]
[1723776776925,0.25098,142.98,142.93,20.12549]
[1723776777429,0.25098,142.98,142.93,0.12549]
[1723776777748,0.12549,142.98,142.94,20.0]
[1723776777956,0.25098,142.98,142.93,0.12549]
[1723776778125,1.99960841,142.98,142.93,0.12549]
[1723776778517,1.99960841,142.98,142.88,65.0]
[1723776778739,8.99360841,142.98,142.89,20.0]
[1723776778949,35.27360841,142.98,142.88,65.0]
[1723776779133,35.27360841,142.98,142.88,20.0]
[1723776779134,51.5409,142.97,142.88,20.0]
[1723776779324,0.25098,142.96,142.9,20.0]
[1723776780554,0.25098,142.96,142.92,20.0]
[1723776780954,0.12549,142.96,142.92,20.0]
[1723776781129,44.5463,142.97,142.93,20.12549]
[1723776781921,12.9764,142.97,142.94,0.38702768]
[1723776782225,30.4025,143.0,142.96,20.0]
[1723776782827,30.4025,143.0,142.95,0.25098]
[1723776783036,30.4025,143.0,142.94,20.25098]
[1723776783658,30.4025,143.0,142.94,0.25098]
[1723776783959,1.87414633,142.99,142.94,0.25098]
[1723776784336,0.12549,142.97,142.91,20.0]
[1723776784532,0.12549,142.97,142.93,20.0]
[1723776784956,12.57079,142.98,142.93,20.0]
[1723776785131,12.57079,142.98,142.91,20.0]
[1723776785335,12.57079,142.98,142.94,20.0]
[1723776786762,12.4453,142.98,142.95,0.25098]
[1723776787137,33.2712,143.04,142.99,20.0]
[1723776787138,12.165,143.01,142.99,20.0]
[1723776787570,12.165,143.01,142.95,26.53098]
[1723776787863,12.165,143.01,142.95,0.25098]
[1723776788071,12.165,143.01,142.95,0.12549]
[1723776788251,12.165,143.01,142.96,0.12549]
[1723776788457,12.165,143.01,142.94,65.25098]
[1723776788655,12.165,143.01,142.96,20.0]
[1723776788967,12.165,143.01,142.97,0.12549]
[1723776789146,12.165,143.01,142.98,20.0]
[1723776789354,12.165,143.01,142.99,0.12549]
[1723776789653,12.165,143.01,143.0,20.0]
[1723776789864,31.4022,143.04,143.0,20.0]
[1723776790064,31.4022,143.04,143.01,0.25098]
[1723776790265,31.4022,143.04,143.0,20.0]
[1723776790468,31.4022,143.04,142.98,20.0]
[1723776790642,31.4022,143.04,142.99,0.25098]
[1723776790965,31.4022,143.04,143.0,20.0]
[1723776791169,31.4022,143.04,142.99,0.25098]
[1723776791752,31.4022,143.04,143.01,20.0]
[1723776792774,31.4022,143.04,143.02,0.51025005]
[1723776792972,12.4675,143.05,143.02,0.12549]
[1723776793275,12.4675,143.05,143.02,0.25098]
[1723776793771,12.4675,143.05,143.02,20.25098]
[1723776794182,31.4193,143.08,143.02,20.25098]
[1723776794487,31.4193,143.08,143.04,20.0]
[1723776795352,31.4193,143.08,143.02,20.25098]
[1723776795560,0.12549,143.07,143.04,20.0]
[1723776795953,31.4193,143.08,143.04,20.0]
[1723776796150,31.4193,143.08,143.05,0.25098]
[1723776796366,33.16664714,143.08,143.0,40.0]
[1723776796570,33.16664714,143.08,143.01,45.25098]
[1723776796774,1.74766244,143.07,143.01,0.12549]
[1723776796957,31.4193,143.08,143.01,0.12549]
[1723776797292,0.12549,143.07,143.04,20.0]
[1723776797450,0.12549,143.07,143.01,20.12549]
[1723776797777,0.12549,143.07,143.03,20.0]
[1723776797990,31.4193,143.08,143.04,0.12549]
[1723776798358,0.12549,143.07,143.01,20.0]
[1723776798550,0.12549,143.07,143.04,20.0]
[1723776798753,31.4193,143.08,143.05,0.12549]
[1723776799677,13.0381,143.09,143.06,20.0]
[1723776800004,13.0381,143.09,143.05,0.12549]
[1723776800174,13.0381,143.09,143.03,20.0]
[1723776800377,13.0381,143.09,143.06,20.0]
[1723776801201,0.12549,143.11,143.06,20.0]
[1723776801432,32.2153,143.12,143.06,20.0]
[1723776801608,32.2153,143.12,143.09,20.0]
[1723776801908,32.2153,143.12,143.07,65.25098]
[1723776802678,32.2153,143.12,143.09,20.0]
[1723776803119,32.2153,143.12,143.07,65.25098]
[1723776803584,12.2274,143.13,143.09,20.0]
[1723776804281,0.12549,143.12,143.07,45.25098]
[1723776804484,0.25098,143.12,143.07,0.12549]
[1723776804812,0.25098,143.12,143.04,20.0]
[1723776804813,1.99819412,143.12,143.04,20.0]
[1723776805117,0.12549,143.12,143.08,20.0]
[1723776806511,0.12549,143.12,143.07,0.12549]
[1723776806512,0.12549,143.12,143.1,20.0]
[1723776806736,0.12549,143.12,143.08,20.0]
[1723776807205,12.2274,143.13,143.09,20.25098]
[1723776807525,12.2274,143.13,143.11,20.0]
[1723776807735,12.2274,143.13,143.09,45.25098]
[1723776807895,12.2274,143.13,143.09,0.25098]
[1723776808100,12.2274,143.13,143.11,20.0]
[1723776808537,12.2274,143.13,143.09,20.12549]
[1723776808700,12.2274,143.13,143.11,20.0]
[1723776808901,12.2274,143.13,143.09,20.12549]
[1723776809116,12.2274,143.13,143.1,0.12549]
[1723776809296,12.2274,143.13,143.09,20.12549]
[1723776809628,12.2274,143.13,143.1,0.12549]
[1723776809926,12.2274,143.13,143.1,45.12549]
[1723776810094,32.5428,143.15,143.11,20.12549]
[1723776811020,0.12549,143.14,143.1,20.12549]
[1723776811228,32.5428,143.15,143.11,0.12549]
[1723776811725,32.5428,143.15,143.12,20.0]
[1723776812429,32.5428,143.15,143.13,20.0]
[1723776813132,32.5428,143.15,143.11,45.12549]
[1723776813423,32.5428,143.15,143.12,20.12549]
[1723776813729,32.5428,143.15,143.13,0.12549]
[1723776815097,12.2274,143.17,143.13,0.12549]
[1723776815302,12.2274,143.17,143.13,45.12549]
[1723776815497,12.2274,143.17,143.14,0.12549]
[1723776815701,12.2274,143.17,143.14,20.12549]
[1723776815898,12.2274,143.17,143.15,0.12549]
[1723776816739,12.2274,143.17,143.14,20.0]
[1723776820715,12.2274,143.17,143.15,0.12549]
[1723776822051,0.12549,143.2,143.15,0.12549]
[1723776822346,0.25098,143.2,143.15,0.25098]
[1723776822554,0.25098,143.2,143.15,0.63165839]
[1723776822714,0.25098,143.2,143.15,0.25098]
[1723776823737,0.25098,143.2,143.15,0.12549]
[1723776824044,0.25098,143.2,143.15,20.0]
[1723776825215,0.25098,143.2,143.14,45.25098]
[1723776825414,0.25098,143.2,143.15,20.0]
[1723776826551,0.25098,143.2,143.16,0.38066237]
[1723776827136,0.25098,143.2,143.1,20.0]
[1723776827337,7.23418,143.2,143.14,20.0]
[1723776827526,0.25098,143.2,143.12,20.0]
[1723776827746,0.25098,143.2,143.14,20.0]
[1723776829163,0.25098,143.2,143.13,0.12549]
[1723776829355,0.25098,143.2,143.13,0.25098]
[1723776829548,0.25098,143.2,143.13,45.25098]
[1723776829767,0.25098,143.2,143.13,0.25098]
[1723776829953,0.25098,143.2,143.13,20.25098]
[1723776830575,0.25098,143.2,143.13,0.25098]
[1723776830743,10.5,143.17,143.07,50.5]
[1723776830950,12.6288,143.15,143.11,20.0]
[1723776831464,12.6288,143.15,143.12,20.0]
[1723776831651,12.6288,143.15,143.11,20.0]
[1723776832171,12.6288,143.15,143.12,0.25098]
[1723776833647,0.25098,143.16,143.12,0.25098]
[1723776833965,12.6023,143.19,143.12,65.25098]
[1723776834185,12.6023,143.19,143.16,20.0]
[1723776834385,32.468,143.21,143.16,20.0]
[1723776835179,32.468,143.21,143.17,0.12549]
[1723776835386,32.468,143.21,143.17,0.25098]
[1723776837505,32.468,143.21,143.18,20.0]
[1723776838572,32.468,143.21,143.17,0.25098]
[1723776838987,32.468,143.21,143.16,45.25098]
[1723776839392,32.468,143.21,143.17,20.0]
[1723776839767,32.468,143.21,143.16,45.25098]
[1723776840202,12.4377,143.23,143.19,20.0]
[1723776840429,12.4377,143.23,143.18,0.12549]
[1723776840578,12.4377,143.23,143.16,71.50098]
[1723776840896,6.9823,143.22,143.12,30.7594]
[1723776841102,6.9823,143.22,143.1,46.29602718]
[1723776841103,64.3852,143.21,143.1,46.25]
[1723776841398,0.12549,143.19,143.09,20.0]
[1723776841694,0.12549,143.17,143.11,20.0]
[1723776841874,0.25098,143.17,143.11,20.0]
[1723776842303,12.793,143.18,143.13,20.0]
[1723776842670,12.793,143.18,143.14,0.25098]
[1723776843273,31.1521,143.21,143.14,65.25098]
[1723776843798,1.87143162,143.2,143.14,45.25098]
[1723776843984,1.87143162,143.2,143.14,0.25098]
[1723776843985,0.12549,143.2,143.14,0.25098]
[1723776844407,1.87160512,143.2,143.14,0.12549]
[1723776844710,0.12549,143.19,143.11,20.0]
[1723776844916,0.12549,143.19,143.12,85.12549]
[1723776845119,0.12549,143.2,143.12,85.12549]
[1723776845120,0.25098,143.2,143.12,85.12549]
[1723776845334,1.99715456,143.2,143.12,65.12549]
[1723776845739,1.99715456,143.2,143.13,0.12549]
[1723776845947,0.25098,143.2,143.13,0.12549]
[1723776846536,1.99715602,143.2,143.13,0.12549]
[1723776847301,0.25098,143.2,143.13,0.12549]
[1723776847732,1.99720665,143.2,143.13,0.12549]
[1723776848035,1.99720665,143.2,143.13,45.12549]
[1723776848233,1.99720123,143.2,143.14,0.12549]
[1723776848407,13.18129,143.18,143.08,51.8929]
[1723776848609,30.26939,143.16,143.06,20.0]
[1723776848822,0.12549,143.14,143.06,20.0]
[1723776849822,0.12549,143.14,143.07,45.25098]
[1723776850436,0.12549,143.14,143.06,26.45491564]
[1723776850729,0.12549,143.14,143.05,52.70491564]
[1723776851244,0.12549,143.14,143.07,20.0]
[1723776851817,0.12549,143.14,143.08,0.25098]
[1723776852625,0.12549,143.14,143.08,45.25098]
[1723776853317,0.12549,143.14,143.09,20.0]
[1723776853533,0.12549,143.14,143.1,0.25098]
[1723776853726,0.12549,143.14,143.09,20.0]
[1723776853952,0.12549,143.14,143.1,0.25098]
[1723776854547,0.12549,143.14,143.09,0.25098]
[1723776854844,0.12549,143.14,143.09,0.12549]
[1723776855047,0.12549,143.14,143.08,0.25098]
[1723776856133,0.12549,143.14,143.09,0.12549]
[1723776856338,0.12549,143.14,143.07,51.70679591]
[1723776856538,0.12549,143.14,143.07,45.25098]
[1723776857160,0.12549,143.14,143.07,51.70679591]
[1723776857815,0.12549,143.12,143.07,45.25098]
[1723776858051,1.99807362,143.12,143.07,0.25098]
[1723776858827,1.99807362,143.12,143.03,32.70743658]
[1723776859020,0.12549,143.1,143.03,52.70743658]
[1723776859258,0.12549,143.1,143.04,20.0]
[1723776859480,1.99824577,143.1,143.03,32.70743658]
[1723776859970,0.25098,143.1,143.03,32.70743658]
[1723776860133,0.25098,143.1,143.04,65.12549]
[1723776860659,0.25098,143.1,143.05,0.12549]
[1723776862368,0.12549,143.1,143.05,0.12549]
[1723776862670,30.6246,143.11,143.05,0.12549]
[1723776863470,30.6246,143.11,143.06,20.0]
[1723776863649,30.6246,143.11,143.07,0.12549]
[1723776865067,30.6246,143.11,143.08,20.0]
[1723776865285,30.6246,143.11,143.09,0.12549]
[1723776865573,30.6246,143.11,143.09,0.25098]
[1723776866283,30.6246,143.11,143.09,0.12549]
[1723776868051,30.6246,143.11,143.05,26.25]
[1723776869152,30.6246,143.11,143.06,0.12549]
[1723776871286,30.6246,143.11,143.06,40.12549]
[1723776871457,30.6246,143.11,143.07,45.12549]
[1723776871778,30.6246,143.11,143.09,20.0]
[1723776872157,30.6246,143.11,143.08,0.12549]
[1723776872465,12.2916,143.13,143.08,0.12549]
[1723776875708,0.25098,143.12,143.07,0.12549]
[1723776875891,1.99810771,143.12,143.06,45.25098]
[1723776876090,1.99810771,143.12,143.06,65.25098]
[1723776876091,0.12549,143.12,143.06,65.25098]
[1723776876288,12.2916,143.13,143.06,65.25098]
[1723776876482,12.2916,143.13,143.06,45.25098]
[1723776877780,1.87235739,143.12,143.06,0.25098]
[1723776878086,0.12549,143.11,143.06,0.25098]
[1723776878600,1.9980767,143.12,143.06,45.25098]
[1723776879317,0.25098,143.12,143.06,45.25098]
[1723776879676,1.99807693,143.12,143.06,0.25098]
[1723776879978,0.25098,143.12,143.06,0.25098]
[1723776880186,0.25098,143.12,143.06,45.25098]
[1723776880396,0.12549,143.12,143.07,20.0]
[1723776880583,0.12549,143.12,143.09,20.0]
[1723776880907,0.12549,143.12,143.08,0.12549]
[1723776881210,0.12549,143.12,143.09,20.0]
[1723776881677,12.2916,143.13,143.11,20.0]
[1723776883078,32.8351,143.14,143.11,20.0]
[1723776883308,32.8351,143.14,143.09,26.25]
[1723776883505,32.8351,143.14,143.1,0.12549]
[1723776883676,1.87238449,143.13,143.08,0.25098]
[1723776883875,0.25098,143.13,143.08,0.25098]
[1723776884609,0.12549,143.13,143.09,20.0]
[1723776884791,0.12549,143.13,143.08,0.12549]
[1723776884990,0.12549,143.13,143.11,20.0]
[1723776885326,32.8351,143.14,143.11,20.0]
[1723776887599,32.8351,143.14,143.08,40.0]
[1723776887794,32.8351,143.14,143.11,20.0]
[1723776887995,12.1198,143.16,143.11,20.0]
[1723776888193,12.1198,143.16,143.13,20.0]
[1723776888505,12.1198,143.16,143.15,20.0]
[1723776888835,12.1198,143.16,143.14,20.0]
[1723776890297,0.12549,143.15,143.08,20.0]
[1723776890518,1.99764357,143.15,143.08,20.0]
[1723776891619,1.99764357,143.15,143.09,0.12549]
[1723776891794,1.99764357,143.15,143.09,45.25098]
[1723776893045,0.25098,143.15,143.09,45.25098]
[1723776895111,0.25098,143.15,143.09,0.25098]
[1723776895300,0.25098,143.15,143.08,65.25098]
[1723776896310,0.25098,143.15,143.11,20.0]
[1723776896509,0.25098,143.15,143.08,65.25098]
[1723776896923,0.25098,143.15,143.11,20.0]
[1723776897228,0.25098,143.15,143.08,65.25098]
[1723776897431,0.12549,143.15,143.11,20.0]
[1723776897595,12.1198,143.16,143.13,20.0]
[1723776898011,12.1198,143.16,143.11,20.0]
[1723776898829,12.1198,143.16,143.1,0.12549]
[1723776899132,0.25098,143.15,143.09,0.12549]
[1723776899623,0.25098,143.15,143.11,20.0]
[1723776899833,0.25098,143.15,143.09,0.12549]
[1723776901336,0.12549,143.15,143.11,20.0]
[1723776901523,12.1198,143.16,143.13,20.0]
[1723776901717,12.1198,143.16,143.12,0.12549]
[1723776902021,12.1198,143.16,143.12,0.25098]
[1723776902215,12.1198,143.16,143.12,0.12549]
[1723776902418,12.1198,143.16,143.08,45.0]
[1723776902419,12.1198,143.16,143.08,51.44805857]
[1723776902600,12.1198,143.16,143.09,0.25098]
[1723776902796,1.99759377,143.15,143.09,0.25098]
[1723776903001,1.99759377,143.15,143.11,20.0]
[1723776903002,0.25098,143.15,143.11,20.0]
[1723776904917,0.12549,143.15,143.11,20.0]
[1723776905135,12.1198,143.16,143.12,0.12549]
[1723776905434,0.12549,143.15,143.11,20.0]
[1723776906134,0.12549,143.15,143.12,0.12549]
[1723776906443,0.12549,143.15,143.09,0.12549]
[1723776906633,0.12549,143.15,143.09,0.25098]
[1723776906634,1.99754233,143.15,143.09,0.25098]
[1723776906837,0.25098,143.15,143.09,0.25098]
[1723776907129,0.25098,143.15,143.11,20.0]
[1723776907512,0.12549,143.15,143.11,20.0]
[1723776907716,12.1198,143.16,143.12,0.25098]
[1723776907912,12.1198,143.16,143.14,20.0]
[1723776908109,12.1198,143.16,143.15,0.12549]
[1723776908321,30.191,143.18,143.16,20.0]
[1723776908744,30.191,143.18,143.17,0.25098]
[1723776908913,12.724,143.2,143.17,0.25098]
[1723776909235,12.724,143.2,143.17,0.12549]
[1723776910520,12.724,143.2,143.18,20.0]
[1723776910952,12.724,143.2,143.16,65.12549]
[1723776911241,12.724,143.2,143.16,0.12549]
[1723776911865,12.724,143.2,143.16,45.12549]
[1723776912053,12.724,143.2,143.17,0.12549]
[1723776913072,12.724,143.2,143.18,20.0]
[1723776913547,12.724,143.2,143.17,0.12549]
[1723776914877,12.724,143.2,143.18,20.0]
[1723776915068,12.724,143.2,143.17,0.12549]
[1723776915383,12.724,143.2,143.13,40.0]
[1723776915555,0.25098,143.19,143.13,20.0]
[1723776915958,0.12549,143.17,143.1,26.43749306]
[1723776916191,1.99756822,143.17,143.1,20.0]
[1723776916495,0.25098,143.17,143.1,20.0]
[1723776916859,0.12549,143.15,143.08,20.0]
[1723776917179,0.12549,143.15,143.01,394.7437]
[1723776917180,0.12549,143.13,143.04,26.43749306]
[1723776917553,0.12549,143.13,143.05,20.0]
[1723776917752,0.12549,143.13,143.08,20.0]
[1723776919267,30.14139,143.14,143.1,20.0]
[1723776919474,30.14139,143.14,143.08,20.0]
[1723776919770,30.14139,143.14,143.05,20.0]
[1723776919771,30.14139,143.14,143.07,20.0]
[1723776920082,30.14139,143.14,143.11,20.0]
[1723776920272,30.14139,143.14,143.08,20.12549]
[1723776920462,0.12549,143.13,143.08,0.12549]
[1723776920663,0.12549,143.13,143.07,0.12549]
[1723776920965,0.12549,143.13,143.08,20.0]
[1723776921161,0.12549,143.13,143.07,0.25098]
[1723776921363,0.12549,143.13,143.09,20.0]
[1723776921677,30.14139,143.14,143.11,20.0]
[1723776922064,30.14139,143.14,143.1,0.12549]
[1723776922258,30.14139,143.14,143.1,0.25098]
[1723776923288,30.14139,143.14,143.11,20.0]
[1723776924395,30.0159,143.14,143.11,20.0]
[1723776925490,12.5207,143.16,143.14,20.0]
[1723776926089,12.5207,143.16,143.15,0.12549]
[1723776926292,12.5207,143.16,143.15,20.12549]
[1723776926491,12.5207,143.16,143.12,0.12549]
[1723776926659,12.5207,143.16,143.13,20.0]
[1723776926862,12.5207,143.16,143.14,0.12549]
[1723776927161,12.5207,143.16,143.12,0.25098]
[1723776927361,12.5207,143.16,143.12,45.25098]
[1723776927583,12.5207,143.16,143.12,0.25098]
[1723776928374,12.5207,143.16,143.13,20.0]
[1723776928687,12.5207,143.16,143.12,0.25098]
[1723776928893,12.5207,143.16,143.13,20.0]
[1723776929277,12.5207,143.16,143.14,0.12549]
[1723776929587,12.5207,143.16,143.12,20.12549]
[1723776929795,12.5207,143.16,143.12,20.0]
[1723776931094,12.5207,143.16,143.11,20.0]
[1723776931296,12.5207,143.16,143.12,0.12549]
[1723776933164,32.9459,143.17,143.15,20.0]
[1723776933359,32.9459,143.17,143.13,20.0]
[1723776933563,32.9459,143.17,143.14,0.25098]
[1723776933789,32.9459,143.17,143.15,20.0]
[1723776934590,32.9459,143.17,143.14,0.12549]
[1723776934793,32.9459,143.17,143.13,20.25098]
[1723776935000,32.9459,143.17,143.13,40.25098]
[1723776935214,32.9459,143.17,143.13,20.25098]
[1723776935389,32.9459,143.17,143.14,20.0]
[1723776936314,32.9459,143.17,143.13,0.25098]
[1723776936614,32.9459,143.17,143.14,20.0]
[1723776936978,32.9459,143.17,143.13,0.25098]
[1723776937388,0.12549,143.16,143.13,0.12549]
[1723776937615,0.25098,143.16,143.11,20.0]
[1723776937785,0.25098,143.16,143.12,0.12549]
[1723776938423,0.25098,143.16,143.07,66.25]
[1723776938581,0.12549,143.14,143.07,40.0]
[1723776938788,0.25098,143.14,143.09,20.0]
[1723776940622,0.25098,143.14,143.08,0.12549]
[1723776940803,0.25098,143.14,143.07,45.25098]
[1723776942522,0.25098,143.14,143.08,20.0]
[1723776943135,0.25098,143.14,143.09,0.25098]
[1723776943305,0.12549,143.14,143.09,45.25098]
[1723776944119,12.4613,143.15,143.11,20.0]
[1723776944300,12.4613,143.15,143.12,0.12549]
[1723776945241,12.4613,143.15,143.12,45.25098]
[1723776945418,12.4613,143.15,143.12,20.25098]
[1723776945732,12.4613,143.15,143.05,13.3202]
[1723776945733,12.4613,143.15,143.08,20.0]
[1723776945941,12.4613,143.15,143.1,20.0]
[1723776946240,12.4613,143.15,143.11,0.12549]
[1723776947554,0.12549,143.14,143.1,0.12549]
[1723776947836,0.25098,143.14,143.07,26.25]
[1723776948006,0.25098,143.14,143.1,20.0]
[1723776948213,0.25098,143.14,143.08,20.0]
[1723776948426,0.25098,143.14,143.1,20.0]
[1723776951946,0.25098,143.14,143.09,20.0]
[1723776952271,0.25098,143.14,143.08,0.12549]
[1723776952462,0.25098,143.14,143.08,45.25098]
[1723776954963,0.25098,143.14,143.09,20.0]
[1723776955140,0.25098,143.14,143.08,45.25098]
[1723776955537,0.25098,143.14,143.08,0.25098]
[1723776955967,0.25098,143.14,143.09,20.0]
[1723776956466,0.25098,143.14,143.08,0.25098]
[1723776956637,0.25098,143.14,143.07,45.25098]
[1723776957265,0.12549,143.12,143.07,45.25098]
[1723776957562,0.25098,143.12,143.07,45.25098]
[1723776958943,0.25098,143.12,143.07,0.12549]
[1723776959146,0.25098,143.12,143.06,20.25098]
[1723776959447,0.25098,143.12,143.08,20.0]
[1723776961377,0.12549,143.12,143.08,20.0]
[1723776961667,31.7478,143.13,143.09,0.12549]
[1723776961848,31.7478,143.13,143.09,20.0]
[1723776962754,31.7478,143.13,143.08,10.76098]
[1723776963040,31.7478,143.13,143.1,20.0]
[1723776963661,31.7478,143.13,143.11,0.12549]
[1723776963852,31.7478,143.13,143.11,0.25098]
[1723776966574,12.4613,143.15,143.12,20.0]
[1723776966776,12.4613,143.15,143.13,20.12549]
[1723776966977,12.4613,143.15,143.11,0.25098]
[1723776967168,12.4613,143.15,143.11,45.25098]
[1723776967688,12.4613,143.15,143.13,20.0]
[1723776971589,12.4613,143.15,143.12,10.51]
[1723776971785,12.4613,143.15,143.13,20.25098]
[1723776972695,31.7928,143.17,143.14,10.51]
[1723776972906,31.7928,143.17,143.15,20.25098]
[1723776974976,31.7928,143.17,143.15,20.12549]
[1723776975176,31.7928,143.17,143.13,30.51]
[1723776975402,31.7928,143.17,143.14,0.25098]
[1723776976275,31.7928,143.17,143.14,0.12549]
[1723776976575,31.7928,143.17,143.13,0.25098]
[1723776977287,31.7928,143.17,143.12,0.25098]
[1723776977698,31.7928,143.17,143.11,75.51]
[1723776977699,1.99751066,143.16,143.11,45.0]
[1723776978014,0.25098,143.16,143.11,65.0]
[1723776978500,0.25098,143.16,143.11,45.0]
[1723776978702,1.99750309,143.16,143.09,20.0]
[1723776978877,0.25098,143.16,143.09,20.0]
[1723776979475,0.25098,143.16,143.09,30.51]
[1723776979984,0.25098,143.16,143.1,0.25098]
[1723776980203,0.25098,143.16,143.12,20.0]
[1723776980407,0.25098,143.16,143.11,10.51]
[1723776980711,0.25098,143.16,143.12,0.25098]
[1723776981210,31.7928,143.17,143.12,20.25098]
[1723776981376,31.7928,143.17,143.12,65.25098]
[1723776983174,31.7928,143.17,143.13,10.51]
[1723776983381,31.7928,143.17,143.14,0.25098]
[1723776983784,31.7928,143.17,143.14,0.12549]
[1723776983995,31.7928,143.17,143.13,0.25098]
[1723776984379,31.7928,143.17,143.13,30.76098]
[1723776984707,31.7928,143.17,143.14,65.0]
[1723776984910,31.7928,143.17,143.15,0.25098]
[1723776985491,31.7928,143.17,143.16,20.0]
[1723776985820,31.7928,143.17,143.16,20.25098]
[1723776989494,12.2685,143.19,143.16,20.25098]
[1723776989698,12.2685,143.19,143.17,0.25098]
[1723776990217,31.6812,143.22,143.17,0.25098]
[1723776990421,31.6812,143.22,143.18,40.0]
[1723776990596,31.6812,143.22,143.19,45.25098]
[1723776990799,31.6812,143.22,143.19,0.12549]
[1723776990994,31.6812,143.22,143.17,0.12549]
[1723776991692,0.12549,143.21,143.17,0.12549]
[1723776992016,31.6812,143.22,143.18,20.0]
[1723776992200,31.6812,143.22,143.19,0.25098]
[1723776992396,31.6812,143.22,143.19,45.25098]
[1723776992916,31.6812,143.22,143.19,0.25098]
[1723776996132,31.6812,143.22,143.19,0.12549]
[1723776996326,31.6812,143.22,143.17,20.0]
[1723776996327,31.6812,143.22,143.18,45.25098]